{"text_format":"1","workbook":"xlsx","n_sheets":9,"sheets":["Tableau 12","Tableau 13","Tableau 14","Tableau 15","Tableau 16","Tableau 17","Tableau 18 ","Tableau 19","Tableau 20"],"not_rendered":{"charts":0,"images":1,"macros":0,"external_links":0,"defined_names":7,"comments":0,"pivot_tables":0},"unopened":[],"bounds":{"document_bytes":16777216,"sheet_cells":100000,"rows_first":2000,"rows_last":500,"rows_between":2000,"halvings":0,"cell_chars":16384,"cell_head_chars":4096},"cells_cut":0,"cells_raw":0,"read":"whole","date_system":"1900"}

{"sheet":"Tableau 12","index":0,"n_rows":10,"n_cols":5,"rows_kept":10,"cut":false,"hidden":false,"merged":[]}
["Tableau 12:  Abonnements délivrés"]
[]
["en nombre de titres",2017,2018,2019,2020]
["Pass lecture/culture - Bibliothèque tous publics*",37271,37009,39805,21204]
["Pass annuel recherche**",22389,21384,21477,12062]
["Carte 15 entrées**",417]
["Carte 3 entrées**",1957]
["Pass recherche 5 entrées",2496,2792,2687,941]
["Pass recherche 1 entrée",7327,9164,9171,3330]
["Total Recherche",34586,33340,33335,{"$f":"SUM(E5+E8+E9)","v":16333}]

{"sheet":"Tableau 13","index":1,"n_rows":14,"n_cols":5,"rows_kept":14,"cut":false,"hidden":false,"merged":[]}
["Tableau 13 : Fréquentation des salles de lecture"]
[]
[null,2017,2018,2019,2020]
["Rez-de-jardin",302031,309969,302303,117159]
["Richelieu",28679,27043,27571,13565]
["Arsenal",8236,7432,8084,3870]
["Opéra",2076,2036,2198,917]
["Avignon",6321,4204,6004,660]
["Sous total RAO",{"$f":"SUM(B5:B8)","v":45312},{"$f":"SUM(C5:C8)","v":40715},{"$f":"SUM(D5:D8)","v":43857},{"$f":"SUM(E5:E8)","v":19012}]
["Total bibliothèque de recherche",{"$f":"B9+B4","v":347343},{"$f":"C9+C4","v":350684},{"$f":"D9+D4","v":346160},{"$f":"E9+E4","v":136171}]
["Haut-de-jardin",507976,507637,504604,185893]
["Estimations Haut-de-jardin hors salles de lecture",66619,66230,70054,16003]
["Total Haut-de-jardin",{"$f":"B11+B12","v":574595},573867,{"$f":"D11+D12","v":574658},201896]
["Total BnF",{"$f":"B10+B13","v":921938},926231,{"$f":"D10+D13","v":920818},{"$f":"E10+E13","v":338067}]

{"sheet":"Tableau 14","index":2,"n_rows":11,"n_cols":5,"rows_kept":11,"cut":false,"hidden":false,"merged":[]}
["Tableau 14 : Nombre de documents communiqués"]
[]
[null,2017,2018,2019,2020]
["Rez-de-Jardin",705420,670848,780461,279391]
["RAO",175655,200132,161612,70632]
["Total sur support",{"$f":"SUM(B4:B5)","v":881075},870980,{"$f":"SUM(D4:D5)","v":942073},350023]
["Gallica intramuros",135301,119213,125173,75191]
["Total BnF",{"$f":"B6+B7","v":1016376},990193,{"$f":"D6+D7","v":1067246},425214]
[]
["En 2019, évolution de l'indicateur Rez-de-jardin, pour inclure plus systématiquement les  "]
["demandes de mise de côté communiquées le lendemain"]

{"sheet":"Tableau 15","index":3,"n_rows":14,"n_cols":4,"rows_kept":14,"cut":false,"hidden":false,"merged":[]}
["Tableau 15 : Fréquentation des expositions temporaires (accès payants et gratuits)"]
[]
["En nombre de visites"]
["Fréquentation des expositions temporaires ","Salle",2020,"2019/2020"]
["Tolkien. Voyage en Terre du Milieu","Galeries 1 et 2 - François-Mitterrand",63047,72024]
["Josef Koudelka. Ruines","Galerie 2 - François-Mitterrand",13439]
["Total expositions payantes",null,{"$f":"SUM(C5:C6)","v":76486}]
["Claudine Nougaret : dégager l'écoute","Galerie des donateurs - François-Mitterrand",10306]
["Pascal Quignard, Fragments d'une écriture","Galerie des donateurs - François-Mitterrand",4171]
["La Société des bibliophiles françois, Pour l’amour du livre","Bibliothèque de l'Arsenal",345]
["Total expositions gratuites",null,{"$f":"SUM(C8:C10)","v":14822}]
["Le Grand Opéra : le spectacle de l'histoire","Opéra Garnier",22670,65555]
["Total expositions site Opéra",null,{"$f":"C12","v":22670}]
[" TOTAL",null,{"$f":"C7+C11+C13","v":113978}]

{"sheet":"Tableau 16","index":4,"n_rows":11,"n_cols":6,"rows_kept":11,"cut":false,"hidden":false,"merged":[]}
["Tableau 16 : Fréquentation des principales manifestations culturelles"]
["Manifestations ayant rassemblé 200 personnes ou plus"]
[]
["Cycle","Titre","Type de manifestation","Date","Lieu","Fréq."]
["Autour de l’exposition Tolkien, voyage en Terre du Milieu","Alan Lee : illustrer Tolkien (avec Marie Bertagnolle) avec retransmission en salle 70","Conférence","2020-02-06","FM - Grand auditorium",404]
["En lisant, en écrivant","Ian McEwan","Conférence","2020-01-14","FM - Grand auditorium",302]
["-","Folie #1","Événement","2020-08-21","FM - Esplanade",250]
["Les rendez-vous du jeu vidéo","Créer un univers fantasy. L’exemple de « The Witcher 3. Wild Hunt »","Conférence","2020-02-25","FM - Petit auditorium",235]
["-","Symphonies de salon : Antoine Reicha, Ludwig van Beethoven","Spectacle vivant","2020-02-04","FM - Grand auditorium",204]
["Fantasy, retour aux sources","Le Roi Arthur, un mythe contemporain","Conférence","2020-03-12","FM - Petit auditorium",200]
["-","Dans la solitude des champs de coton","Événement","2020-09-02","FM - Esplanade",200]

{"sheet":"Tableau 17","index":5,"n_rows":25,"n_cols":3,"rows_kept":25,"cut":false,"hidden":false,"merged":[[1,0,1,2],[2,0,2,2],[10,0,10,2],[16,0,16,2]]}
["Tableau 17 : Fréquentation des activités d'éducation artistique et culturelle"]
[]
["Par rapport aux années précédentes, ce tableau prend en compte l'accueil de groupes autonomes et les groupes grand public hors scolaire"]
[]
["Activités","Accueils BnF","Accueils groupes autonomes"]
["Grand public"]
["Visites de la BnF",2307,825]
["Ateliers",702]
["Visites d'expositions",1737,948]
["Total",{"$f":"SUM(B7:B9)","v":4746},{"$f":"SUM(C7:C9)","v":1773}]
["Scolaires"]
["Visites de la BnF",1002]
["Ateliers",1772]
["Visites d'expositions",2007,2171]
["Autres (concours de récitation, journée presse...)","annulés"]
["Total",{"$f":"SUM(B12:B15)","v":4781},{"$f":"SUM(C12:C14)","v":2171}]
["Formations enseignants"]
["Formations à la BnF",198]
["Visites de la BnF",580]
["Visites d'expositions",145]
["Formations à distance ",251]
["Journées EAC dans les territoires",115]
["Autres (concours de récitation, journée presse...)"]
["Total",{"$f":"SUM(B18:B23)","v":1289},{"$f":"SUM(C19:C22)","v":0}]
["TOTAL",{"$f":"B10+B16+B24","v":10816},{"$f":"C10+C16+C24","v":3944}]

{"sheet":"Tableau 18 ","index":6,"n_rows":15,"n_cols":5,"rows_kept":15,"cut":false,"hidden":false,"merged":[]}
["Tableau 18 : L'offre documentaire de Gallica "]
[]
[null,2017,2018,2019,2020]
["Monographies",370460,389775,425412,461792]
["Fascicules de périodiques",1976433,2349523,3500459,4685698]
["Documents iconographiques",1513998,1257843,1402067,1476519]
["Cartes et plans",137008,156630,170210,174281]
["Documents sonores",47404,47521,47612,47933]
["Manuscrits",69292,78569,92140,104208]
["Musique notée",46110,49588,47233,51426]
["Vidéos",733,1338,1638,2258]
["Objets",179267,179342,222776,246267]
["Nombre total de documents",{"$f":"SUM(B4:B12)","v":4340705},{"$f":"SUM(C4:C12)","v":4510129},{"$f":"SUM(D4:D12)","v":5909547},{"$f":"SUM(E4:E12)","v":7250382}]
[]
["(hors documents uniquement indexés et hors Gallica intra muros)"]

{"sheet":"Tableau 19","index":7,"n_rows":25,"n_cols":5,"rows_kept":25,"cut":false,"hidden":false,"merged":[[22,0,22,4]]}
["Tableau 19 : La fréquentation de Gallica"]
[]
[null,2017,2018,2019,2020]
["gallica.bnf.fr*",13468641,15242033,14926804,17954940]
["lecteur exportable",50908,19200,8363,506280]
["application",371010,312182,259304,254764]
["Site mobile gallica.bnf.fr/m*",1757629]
["Gallica intra-muros",41404,44771,45823,33112]
["Gallicadabra",7706,7050,9725,10011]
["Gallica studio",11867,34498,28227,25880]
["Numistral",21502,38534,43655,37677]
["Grande Collecte",8848,36601,22325,4420]
["Rotomagus",9890,20661,21691,7559]
["Bibliothèque numérique du RFN",13724,26133,27672,28116]
["Bibliothèque diplomatique numérique",null,39769,34091,21059]
["France-Angleterre",null,20126,85979,31609]
["Numba",null,null,20667,8303]
["Rosalis",null,null,null,50841]
["Pireneas",null,null,null,37345]
["IIIF-Gallica**",20614]
["Nombre total de visites",{"$f":"SUM(B4:B20)","v":15783743},{"$f":"SUM(C4:C20)","v":15841558},{"$f":"SUM(D4:D20)","v":15534326},{"$f":"SUM(E4:E20)","v":19011916}]
[]
["En italiques : services ouverts en cours d'année."]
["* mesures fusionnées en octobre 2017 entre site mobile et site principal"]
["** arrêt de la mesure en mars 2017"]

{"sheet":"Tableau 20","index":8,"n_rows":17,"n_cols":2,"rows_kept":17,"cut":false,"hidden":false,"merged":[[16,0,16,1]]}
["Tableaux 20 : Les partenaires de Gallica au 31 décembre 2020"]
[]
["Les partenaires de Gallica par types de partenaires *",2020]
["Partenaires des territoires",152]
["Partenaires de l’Enseignement supérieur et de la recherche",38]
["Autres partenaires",54]
["Bibliothèques étrangères",10]
["Total des partenaires de Gallica",254]
["(toutes filières)"]
[]
["Nombre de documents des partenaires accessibles dans Gallica par filières","Fin 2020"]
["Intégration par numérisation des documents dans les marchés et ateliers de la BnF",237042]
["Intégration des fichiers numériques",365015]
["Référencement par moissonnage des bibliothèques numériques partenaires",737375]
["Total des documents des partenaires",{"$f":"SUM(B12:B14)","v":1339432}]
[]
["*  le calcul des partenaires a évolué. Désormais, seuls les partenaires actifs (moissonnés ou présents) dans Gallica sont comptabilisés"]